Workbook

Sheet Introduction
A3: . . . . . . . . . . . . . . . . . . . . . . . . . . . . . . . . . . . . . . . . . . . . . . . . . . . . . . . . . .
A5: Guidelines For Estimating
A6: Bison Bull Backgrounding Costs
A7: ="For Weight Range of "&Input!E7&" - "&Input!E9&" lbs" -> For Weight Range of 480 - 800 lbs
A8: ="Based on "&Input!E5&" Head" -> Based on 300 Head
H11: Date: | J11: October, 2022
B15: This guide is designed to provide you with planning information and a format for calculating costs of production of a bison bull backgrounding enterprise in Manitoba. General Manitoba Agriculture recommendations are assumed in using feed and veterinary inputs. These figures provide an economic evaluation of the livestock and estimated prices required to cover all costs. Costs include labour, investment and depreciation, but do not include management costs, nor do they necessarily represent the average cost of production in Manitoba.
B23: Backgrounding generally refers to the feeding of calves from weaning until they are put onto a high concentrate finishing ration. An example of a typical backgrounding operation would be, feed 480 pound bulls to gain 1.25 to 2.0 pounds per day for approximately 100-200 days to produce 750 to 850 pound backgrounded feeders.
B30: These budgets may be adjusted by putting in your own figures. As a producer you are encouraged to calculate your own costs of production. Good management is assumed in that a balanced ration is being fed, livestock are on a herd health program and handling facilities are included.
B36: This tool is available as an Excel worksheet at:
B43: is also available to help
B44: determine machinery costs.
B46: Note: This budget is only a guide and is not intended as an in-depth study of the cost of production of this industry. Interpretation and use of this information is the responsibility of the user. If you need help with a budget, contact a Farm Management Specialist.

Sheet Summary
A1: ="Bison Bull Backgrounding Production Cost Summary "&Introduction!J11 -> Bison Bull Backgrounding Production Cost Summary October, 2022
A2: ="Based on "&Input!E5&" feeders, weight range "&Input!E7&" to "&Input!E9&" lbs, @ "&Input!E14&" lbs. ADG" -> Based on 300 feeders, weight range 480 to 800 lbs, @ 1.45 lbs. ADG
A4: A. Operating Costs | C4: Cost/Head | E4: Total Cost | G4: Your Cost
A5: 1. Feed Costs
A6: 1.01 Forage | C6: =Details!E39 -> 80.8 | E6: =ROUND(C6*Input!$E$5,0) -> 24240
A7: 1.02 Grain/Concentrate | C7: =Details!E46 -> 70.8 | E7: =ROUND(C7*Input!$E$5,0) -> 21240
A8: 1.03 Salt & Minerals | C8: =Details!E57 -> 9.044 | E8: =ROUND(C8*Input!$E$5,0) -> 2713
A9: Total Feed Costs | C9: =SUM(C6:C8) -> 160.644 | E9: =SUM(E6:E8) -> 48193
A10: 2. Other Operating Costs
A11: 2.01 Feeder Cost | C11: =Details!E72 -> 996.3529412 | E11: =ROUND(C11*Input!$E$5,0) -> 298906
A12: 2.02 Straw | C12: =Details!E77 -> 7 | E12: =ROUND(C12*Input!$E$5,0) -> 2100
A13: 2.03 Pasture Costs | C13: =Details!E82 -> 151.2 | E13: =ROUND(C13*Input!$E$5,0) -> 45360
A14: 2.04 Veterinary Medicine & Supplies | C14: =Details!E104 -> 9.54 | E14: =ROUND(C14*Input!$E$5,0) -> 2862
A15: 2.05 Annual Fuel & Repair Costs | C15: =Details!E130 -> 13.10776667 | E15: =ROUND(C15*Input!$E$5,0) -> 3932
A16: 2.06 Utilities | C16: =Details!E135 -> 3.68 | E16: =ROUND(C16*Input!$E$5,0) -> 1104
A17: 2.07 Trucking Costs | C17: =Details!E141 -> 19.09090909 | E17: =ROUND(C17*Input!$E$5,0) -> 5727
A18: 2.08 Insurance | C18: =Details!E155 -> 6.48 | E18: =ROUND(C18*Input!$E$5,0) -> 1944
A19: 2.09 Manure Removal | C19: =Details!E164 -> 11.8892655 | E19: =ROUND(C19*Input!$E$5,0) -> 3567
A20: 2.10 Barn & Office Supplies | C20: =Details!E169 -> 4.67 | E20: =ROUND(C20*Input!$E$5,0) -> 1401
A21: 2.11 Death Loss | C21: =Details!E177 -> 17.71 | E21: =ROUND(C21*Input!$E$5,0) -> 5313
A22: Subtotal Operating Costs | C22: =SUM(C9:C21) -> 1401.364882 | E22: =SUM(E11:E21)+E9 -> 420409
A23: 2.12 Operating Interest | C23: =Details!E185 -> 55.26210959 | E23: =ROUND(C23*Input!$E$5,0) -> 16579
A24: Total Operating Costs | C24: =C22+C23 -> 1456.626992 | E24: =E22+E23 -> 436988
A25: B. Fixed Costs
A26: 3. Depreciation
A27: 3.01 Buildings | C27: =Details!E218 -> 14.33 | E27: =ROUND(C27*Input!$E$5,0) -> 4299
A28: 3.02 Equipment | C28: =Details!E225 -> 4.27 | E28: =ROUND(C28*Input!$E$5,0) -> 1281
A29: 3.03 Machinery | C29: =Details!E232 -> 10.84 | E29: =ROUND(C29*Input!$E$5,0) -> 3252
A30: 4. Investment
A31: 4.01 Buildings | C31: =Details!E243 -> 4.3 | E31: =ROUND(C31*Input!$E$5,0) -> 1290
A32: 4.02 Machinery & Equipment | C32: =Details!E251 -> 4.76 | E32: =ROUND(C32*Input!$E$5,0) -> 1428
A33: Total Fixed Costs | C33: =SUM(C27:C32) -> 38.5 | E33: =SUM(E27:E32) -> 11550
A35: Total Operating and Fixed Costs | C35: =C24+C33 -> 1495.126992 | E35: =E24+E33 -> 448538
A37: C. Labour | C37: =Details!E255 -> 78 | E37: =C37*Input!$E$5 -> 23400
A39: Total Cost of Production | C39: =C35+C37 -> 1573.126992 | E39: =E35+E37 -> 471938
A41: Profitability and Breakeven Analysis
A43: Estimated Farmgate | C43: Per Head | E43: Total
A44: =" Gross Revenue @ $"&Input!E10&"/cwt market price" -> Gross Revenue @ $180/cwt market price | C44: =Breakeven!F47 -> 1382.4 | E44: =ROUND(C44*Input!E5,0) -> 414720
A46: Operating Expense Ratio | C46: =SUM(C24/C44) -> 1.053694294
C49: Breakeven Purchase | E49: Breakeven Selling
C50: Price ($/cwt) @ | E50: Price ($/cwt) @
C51: ="$"&Input!E10&"/cwt market price" -> $180/cwt market price | E51: ="$"&Input!E8&"/cwt feeder price" -> $205/cwt feeder price
A52: Operating Costs | C52: =Breakeven!F50*100 -> 192.1095727 | E52: =Breakeven!F30*100 -> 189.6649729
A53: Operating Costs & Labour | C53: =Breakeven!F57*100 -> 175.8595727 | E53: =Breakeven!F34*100 -> 199.8212229
A54: Operating & Fixed Costs | C54: =Breakeven!F64*100 -> 184.0887394 | E54: =Breakeven!F38*100 -> 194.6779938
A55: Total Costs | C55: =Breakeven!F71*100 -> 167.8387394 | E55: =Breakeven!F42*100 -> 204.8342438
C57: Cost per lb of | E57: Marginal Returns per head
C58: gain sold ($/cwt) | E58: ="@ $"&Input!E10&"/cwt market price" -> @ $180/cwt market price
A59: Feed Costs | C59: =Breakeven!F6*100 -> 55.77916667 | E59: =C44-C11-C9 -> 225.4030588
A60: Operating Costs | C60: =Breakeven!F11*100 -> 159.8173788 | E60: =Breakeven!F47-Summary!C24 -> -74.22699202
A61: Operating Costs & Labour | C61: =Breakeven!F16*100 -> 186.9007121 | E61: =Breakeven!F47-(C24+C37) -> -152.226992
A62: Operating & Fixed Costs | C62: =Breakeven!F21*100 -> 173.1854343 | E62: =Breakeven!F47-(C35) -> -112.726992
A63: Total Costs | C63: =Breakeven!F26*100 -> 200.2687677 | E63: =Breakeven!F47-(C39) -> -190.726992
A65: Note: This budget is only a guide and is not intended as an in-depth study of the cost of production of this industry. Interpretation and utilization of this information is the responsibility of the user. No liability for decisions based on this publication is assumed.

Sheet Risk Analysis
A1: Risk & Sensitivity Analysis (Stress Test)
A2: A. Operating Costs
B3: Feed cost | C3: =Summary!C9 -> 160.644
B4: Weanling cost | C4: =Summary!C11 -> 996.3529412
B5: Other Operating Costs | C5: =Summary!C24-Summary!C11-Summary!C9 -> 299.6300508
B6: Subtotal | C6: =SUM(C3:C5) -> 1456.626992
A7: B. Fixed Costs | C7: =Summary!C33 -> 38.5
A8: C. Labour | C8: =Summary!C37 -> 78
A9: Total Costs | C9: =SUM(C6:C8) -> 1573.126992
A11: Estimated Farmgate
B12: Price ($ per cwt) | C12: =Input!E10 -> 180
B15: Percent Market Price Change | C15: -0.1
B16: Percent Feed Cost Change | C16: 0.1
B17: Percent Feeder Cost Change | C17: 0.05
C20: Per Head
B21: Market Price ($ per cwt) | C21: =SUM(C12*(1+C15)) -> 162
B22: Feed Cost | C22: =SUM(C3+(C3*C16)) -> 176.7084
B23: Feeder Cost | C23: =SUM(C4+(C4*C17)) -> 1046.170588
A25: ="Stress Test Scenario = Market Price "&IF(C15<0,"Down","Up")&" "&ABS(C15*100)&"%, Feed Price "&IF(C16<0,"Down","Up")&" "&ABS(C16*100)&"% and Feeder Cost "&IF(C17<0,"Down","Up")&" "&ABS(C17*100)&"%" -> Stress Test Scenario = Market Price Down 10%, Feed Price Up 10% and Feeder Cost Up 5%
B26: Operating Costs | C26: =SUM(C5+C22+C23) -> 1522.509039
B27: Total Costs | C27: =C7+C8+C26 -> 1639.009039
B28: Gross Revenue / feeder | C28: =(Breakeven!F45/100)*'Risk Analysis'!C21 -> 1244.16
B29: Marginal Returns
B30: Over Operating Costs | C30: =SUM(C28-C26) -> -278.3490391
B31: Over Operating & Labour Costs | C31: =SUM(C28-C26-C8) -> -356.3490391
B32: Over Total Costs (Net Profit) | C32: =SUM(C28-C27) -> -394.8490391
B34: Operating Expense Ratio | C34: =SUM(C26/C28) -> 1.223724472
A36: Estimated Breakeven Canadian Dollar Analysis*
C38: ="Est. Market Price ($/cwt Cdn) @ "&TEXT(Input!E16,"0.0000")&" Cdn per USD" -> Est. Market Price ($/cwt Cdn) @ 0.7300 Cdn per USD
C39: =SUM($E$39-10) -> 170 | D39: =SUM($E$39-5) -> 175 | E39: =Input!E10 -> 180 | F39: =SUM($E$39+5) -> 185 | G39: =SUM($E$39+10) -> 190
A40: Breakeven CDN Dollar ($1 Cdn = $ USD)
B41: Operating Costs | C41: =SUM((C39/100)*Breakeven!$F$45*Input!$E$16)/Summary!$C$24 -> 0.6543116427 | D41: =SUM((D39/100)*Breakeven!$F$45*Input!$E$16)/Summary!$C$24 -> 0.6735561028 | E41: =SUM((E39/100)*Breakeven!$F$45*Input!$E$16)/Summary!$C$24 -> 0.6928005629 | F41: =SUM((F39/100)*Breakeven!$F$45*Input!$E$16)/Summary!$C$24 -> 0.712045023 | G41: =SUM((G39/100)*Breakeven!$F$45*Input!$E$16)/Summary!$C$24 -> 0.7312894831
B42: Operating & Labour Costs | C42: =SUM((C39/100)*Breakeven!$F$45*Input!$E$16)/(Summary!$C$24+Summary!$C$37) -> 0.6210551521 | D42: =SUM((D39/100)*Breakeven!$F$45*Input!$E$16)/(Summary!$C$24+Summary!$C$37) -> 0.6393214801 | E42: =SUM((E39/100)*Breakeven!$F$45*Input!$E$16)/(Summary!$C$24+Summary!$C$37) -> 0.6575878081 | F42: =SUM((F39/100)*Breakeven!$F$45*Input!$E$16)/(Summary!$C$24+Summary!$C$37) -> 0.6758541361 | G42: =SUM((G39/100)*Breakeven!$F$45*Input!$E$16)/(Summary!$C$24+Summary!$C$37) -> 0.6941204641
B43: Operating, Fixed & Labour Costs | C43: =SUM((C39/100)*Breakeven!$F$45*Input!$E$16)/(Summary!$C$39) -> 0.6058557286 | D43: =SUM((D39/100)*Breakeven!$F$45*Input!$E$16)/(Summary!$C$39) -> 0.6236750148 | E43: =SUM((E39/100)*Breakeven!$F$45*Input!$E$16)/(Summary!$C$39) -> 0.6414943009 | F43: =SUM((F39/100)*Breakeven!$F$45*Input!$E$16)/(Summary!$C$39) -> 0.6593135871 | G43: =SUM((G39/100)*Breakeven!$F$45*Input!$E$16)/(Summary!$C$39) -> 0.6771328732
A45: ="Breakeven Canadian Dollar = (Est. Market Price ($/lb) x Shrunk Wt. (lbs) x $ Cdn per USD) / Cost" -> Breakeven Canadian Dollar = (Est. Market Price ($/lb) x Shrunk Wt. (lbs) x $ Cdn per USD) / Cost
A46: =" (eg. ($"&TEXT(E39/100,"0.00")&" x "&ROUND(Breakeven!F45,0)&" lbs x $"&TEXT(Input!E16,"0.0000")&") / $"&TEXT(Summary!C39,"0.00")&") = $"&TEXT(E43,"0.0000") -> (eg. ($1.80 x 768 lbs x $0.7300) / $1573.13) = $0.6415
A48: Note: This budget is only a guide and is not intended as an in depth study of the cost of production of this industry. Interpretation and utilization of this information is the responsibility of the user.

Sheet Input
A1: Bison Bull Backgrounding Costs - Input
B3: Herd Profile
B5: Number of Feeders Purchased | E5: 300 | F5: head
B6: Feeder Bull Mortality Rate | E6: 1.5 | F6: %
B7: Feeder Purchased Weight | E7: 480 | F7: lbs
B8: Feeder Bull Price | E8: 205 | F8: /cwt
B9: Finish Weight | E9: 800 | F9: lbs
B10: Feeder Selling Price | E10: 180 | F10: /cwt
B12: Percent Shrink Off- feeder | E12: 4 | F12: %
B13: Percent Shrink On- calf | E13: 0 | F13: %
B14: Average Daily Gain | E14: 1.45 | F14: lbs/day
B15: Dressing Percentage | E15: 0 | F15: %
B16: $1 Canadian Dollar | D16: ="($"&TEXT(1/E16,"#.####")&" CDN )" -> ($1.3699 CDN ) | E16: 0.73 | F16: / $1 USD
B17: Days On Feed | E17: =ROUND((E9-(E7-(E7*E13/100)))/E14,0) -> 221 | F17: days
B18: Days on Pasture | E18: 120 | F18: days
B19: Days on Feed in Feedlot | E19: =SUM(E17-E18) -> 101 | F19: days
B21: Total Feed Cost per Bull | E21: =Summary!C9 -> 160.644
B22: Average Feed Cost per Day | E22: =SUM(E21/E19) -> 1.590534653
B23: Feed Cost per lb. of Gain Sold (shrunk weight) | E23: =(E21/ROUND((Input!$E$9-(Input!$E$9*Input!$E$12/100))-(Input!$E$7-(Input!$E$7*Input!$E$13/100)),0)) -> 0.5577916667
B25: Total Pounds of Gain | E25: =ROUND(E9-E7,0) -> 320
B26: Total Pounds of Gain (Shrunk Weight) | E26: =ROUND((E9-(E9*E12/100))-(E7-(E7*E13/100)),0) -> 288
B28: Footnote: 1 kilogram (kg) = 2.2046 pounds (lbs)
B30: Feed Costs | C30: Cost | G30: Feeder Bison Requirement
B31: Grass Hay | C31: 100 | D31: /ton | E31: 16 | F31: lbs/day
B32: Other Forage | C32: 0 | D32: /ton | E32: 0 | F32: lbs/day
B33: Silage | C33: 0 | D33: /ton | E33: 0 | F33: lbs/day
B34: Grain/concentrate | C34: 0.2 | D34: /lb | E34: 3.5 | F34: lbs/day
B35: Salt | C35: 0.14 | D35: /lb | E35: 3.5 | F35: lbs/year
B36: Mineral | C36: 0.91 | D36: /lb | E36: 9.4 | F36: lbs/year
B38: Pasture Costs | D38: cost / day | E38: 1.26
B40: Other Operating Costs
B42: Straw
B43: Annual Requirement | E43: 0.1 | F43: tonnes/feeder
B44: Cost | E44: 70 | F44: /tonne
B46: Veterinary Medicine & Supplies
B47: Feeder Medication
B48: Blackleg (8 way vaccine) | E48: 0.83 | F48: /feeder
B49: Vitamin | E49: 0 | F49: /feeder
B50: Parasite Control | E50: 7.6 | F50: /feeder
B52: Herd Health Program
B53: Professional Services
B54: Total Yearly Hours | E54: 1 | F54: hours
B55: Rate | E55: 175 | F55: /hour
B57: Transportation
B58: Total Distance (round trip) | E58: 160 | F58: km
B59: Charge per km | E59: 1
B60: Number of yearly visits | E60: 1
B62: Annual Fuel & Repair Costs
A63: a) Machinery Fuel Costs - Winter Feeding
A64: Tractor with Loader PTO hp | E64: 120
A65: Diesel Fuel Cost | E65: 1.65 | F65: /litre
A66: Tractor Hours Per Day (average) | E66: 1 | F66: hours
A67: b) Machinery Repair (% of investment cost) | E67: 1 | F67: %
A68: c) Building & fence repair (% of investment cost) | E68: 2 | F68: %
B69: Utilities
A70: Hydro | B70: - Rate | E70: 0.09324 | F70: / kWh
B71: 12 | C71: kWh per feeder | E71: =SUM(B71*E5*E70) -> 335.664
B72: 1 | C72: 1000 watt waterer | E72: =SUM(B72*18)*(E19)*E70 -> 169.51032
D73: Total Hydro | E73: =SUM(E71:E72) -> 505.17432
A74: Water | E74: 0
A75: Telephone | E75: 600
B77: Trucking to Feedlot
B78: Distance to packing plant | E78: 150 | F78: miles
B79: Trucking cost | E79: 7 | F79: /loaded mile
B80: Number of head per load | E80: 85
B82: Trucking Cost
B83: Trucking cost | C83: Rate/loaded mile | E83: 7 | F83: /loaded mile
C84: Milage, distance to market | E84: 150 | F84: miles
C85: Truck capacity # head | E85: 55 | F85: head
B87: Manure Removal
A88: Manure volume produced | E88: 0.024 | F88: m3/feeder/day
A89: Manure volume shrinkage | E89: 75 | F89: %
A90: Cost for manure removal & application | E90: 15 | F90: /cubic yard
B92: Insurance
B93: Cost per $100 Capital Invested in:
B94: Livestock | E94: 0.45
B95: Buildings & Equipment | E95: 0.4
B96: Additional Coverage for Liability | E96: 49
B98: Barn & Office Supplies
B99: Total yearly expense relating to barn | E99: 1400
B101: Operating Interest Rate | E101: 7.75 | F101: %
B102: Investment Interest Rate | E102: 3 | F102: %
B104: Footnote: cwt = hundred-weight = 100 lbs
D106: Capital Costs
D108: Original | E108: Salvage | G108: Useful
D109: Value | E109: Value | G109: Life
B110: Handling Facilities
B111: Land & Landscaping | D111: 10000
B112: Waterers | D112: 6000
B113: Squeeze, Gates & Scale | D113: 20000
B114: Well & Pressure System | D114: 8000
B115: Pens (Working & Sorting) | D115: 42000
B116: Total Building Cost | D116: =SUM(D111:D115) -> 86000 | E116: 0 | F116: % | G116: 20 | H116: years
B118: Equipment
B119: Self Feeder | D119: 27000
B120: Hay Feeders | D120: 2500
B121: Miscellaneous | D121: 2500
B122: Total Equipment Cost | D122: =SUM(D119:D121) -> 32000 | E122: 0 | F122: % | G122: 25 | H122: years
B124: Machinery
B125: Tractors & Loader ($120,000 @ 30%) | D125: 36000 | E125: 20 | F125: % | G125: 15 | H125: years
A126: Miscellaneous | D126: 20000 | E126: 20 | F126: % | G126: 10 | H126: years
B128: Total Capital Investment | D128: =D116+D122+D125+D126 -> 174000
B130: Labour Costs
B132: Hours | E132: 3 | F132: head/year
B133: Wage | E133: 26 | F133: /hour

Sheet Details
A1: Bison Bull Backgrounding Cost Worksheet
A2: ="Based on "&Input!E5&" head" -> Based on 300 head
B4: Assumptions
B5: ="1. This budget assumes the weaning and/or purchase weight of bison bull calves to be approximately "&Input!E7&" lbs and finish weight to be "&Input!E9&" lbs." -> 1. This budget assumes the weaning and/or purchase weight of bison bull calves to be approximately 480 lbs and finish weight to be 800 lbs.
B9: ="2. This budget assumes a shrink of "&Input!E12&" %. Shrunk Weight weight = "&ROUND(Input!E9-(Input!E9*(Input!E12/100)),0)&" lbs." -> 2. This budget assumes a shrink of 4 %. Shrunk Weight weight = 768 lbs.
B11: ="3. Average Daily Gain = "&Input!E14&" lbs per day. " -> 3. Average Daily Gain = 1.45 lbs per day.
B13: ="4. Time frame from start to finish is approximately "&Input!E17&" days, "&Input!E19&" days backgrounding ration and "&Input!E18&" days pasture." -> 4. Time frame from start to finish is approximately 221 days, 101 days backgrounding ration and 120 days pasture.
B16: 5. Grain ration if used is prepared (minerals and salt included).
B18: ="6. This budget is based an a backgrounding enterprise of "&Input!E5&" bulls." -> 6. This budget is based an a backgrounding enterprise of 300 bulls.
B20: A. Operating Costs
J21: Your Cost
B22: 1. Feed Costs
B23: 1.01 Forage
C24: Grass Hay | E24: =Input!E19 -> 101 | G24: days on feed
D25: x | E25: =Input!E31 -> 16 | G25: lbs/feeder/day
D26: x | E26: =Input!C31/2000 -> 0.05 | G26: /lb
D27: = | E27: =ROUND((E24*E25)*E26,2) -> 80.8 | G27: /feeder
C29: Silage | E29: =Input!E19 -> 101 | G29: days on feed
D30: x | E30: =Input!E33 -> 0 | G30: lbs/feeder/day
D31: x | E31: =Input!C33/2000 -> 0 | G31: /lb
D32: = | E32: =ROUND((E29*E30)*E31,2) -> 0 | G32: /feeder
C34: Other forage | E34: =Input!E19 -> 101 | G34: days on feed
D35: x | E35: =Input!E32 -> 0 | G35: lbs/feeder/day
D36: x | E36: =Input!C32/2000 -> 0 | G36: /lb
D37: = | E37: =ROUND((E34*E35)*E36,2) -> 0 | G37: /feeder
D39: = | E39: =E27+E32+E37 -> 80.8 | G39: /feeder
B41: 1.02 Grain/Concetrate
E42: =Input!E19 -> 101 | G42: days on feed
D43: x | E43: =Input!E34 -> 3.5 | G43: lbs/feeder/day
D44: = | E44: =ROUND((E42*E43)/2000,3) -> 0.177 | G44: tons fed
D45: x | E45: =Input!C34 -> 0.2 | G45: /lb
D46: = | E46: =ROUND(E44*E45*2000,2) -> 70.8 | G46: /feeder
B48: 1.03 Salt & Minerals
E49: =Input!E35 -> 3.5 | G49: lbs salt/year
D50: x | E50: =Input!C35 -> 0.14 | G50: $/lb
D51: = | E51: =E49*E50 -> 0.49 | G51: /feeder
E53: =Input!E36 -> 9.4 | G53: lbs mineral/year
D54: x | E54: =Input!C36 -> 0.91 | G54: $/lb
D55: = | E55: =E53*E54 -> 8.554 | G55: /feeder
D57: = | E57: =E51+E55 -> 9.044 | G57: /feeder
B59: 2. Other Operating Costs
B61: 2.01 Feeder Bison Cost
E62: =Input!E7 -> 480 | G62: lbs/feeder
D63: x | E63: =Input!E8 -> 205 | G63: /cwt
D64: ÷ | E64: 100 | G64: lbs/cwt
D65: = | E65: =ROUND(E62/100*E63,2) -> 984 | G65: /feeder
E67: =Input!E78 -> 150 | G67: miles
D68: x | E68: =Input!E79 -> 7 | G68: $/loaded mile
D69: ÷ | E69: =Input!E80 -> 85 | G69: head load capacity
D70: = | E70: =(E67*E68)/E69 -> 12.35294118 | G70: /feeder
D72: = | E72: =E65+E70 -> 996.3529412 | G72: /feeder
B74: 2.02 Straw
E75: =Input!E43 -> 0.1 | G75: tonnes/feeder/year
D76: x | E76: =Input!E44 -> 70 | G76: /tonne
D77: = | E77: =ROUND(E75*E76,2) -> 7 | G77: /feeder
B79: 2.03 Pasture Costs
E80: =Input!E38 -> 1.26 | G80: $/head/day
D81: x | E81: =Input!E18 -> 120 | G81: days on pasture
D82: = | E82: =E80*E81 -> 151.2 | G82: /feeder
B84: 2.04 Veterinary Medicine & Supplies
C85: Medication
E86: =Input!E48 -> 0.83 | G86: blackleg
D87: + | E87: =Input!E49 -> 0 | G87: vitamin
D88: + | E88: =Input!E50 -> 7.6 | G88: parasite control
D89: = | E89: =ROUND(E86+E87+E88,2) -> 8.43 | G89: /feeder
C91: Herd health program
E92: =Input!E55 -> 175 | G92: /hour charge
D93: x | E93: =Input!E54 -> 1 | G93: hours
D94: ÷ | E94: =Input!E5 -> 300 | G94: feeders
D95: = | E95: =ROUND(E92*E93/E94,2) -> 0.58 | G95: /feeder
C97: Mileage
E98: =Input!E59 -> 1 | G98: /km charge
D99: x | E99: =Input!E58 -> 160 | G99: kilometres
D100: x | E100: =Input!E60 -> 1 | G100: visits
D101: ÷ | E101: =Input!E5 -> 300 | G101: feeders
D102: = | E102: =ROUND(E98*E99*E100/E101,2) -> 0.53 | G102: /feeder
C104: Total | D104: = | E104: =E89+E95+E102 -> 9.54 | G104: /feeder
B106: 2.05 Annual Fuel & Repair Costs
B107: Machinery fuel cost
E108: =Input!E64 -> 120 | G108: PTO hp
D109: ÷ | E109: 2.5 | G109: avg HP required
D110: x | E110: 0.1665576 | G110: litres fuel/hour/hp
D111: x | E111: =Input!E66 -> 1 | G111: hours per day
D112: x | E112: =Input!E65 -> 1.65 | G112: diesel / litre
D113: x | E113: =Input!E19 -> 101 | G113: days on feed
E114: =IF(E113="ERROR","ERROR",ROUND(((E108/E109)*E110*E111*E112*E113),2)) -> 1332.33 | G114: annual fuel cost
D115: ÷ | E115: =Input!E5 -> 300 | G115: feeders
D116: = | E116: =IF(E113="ERROR","ERROR",SUM(E114/E115)) -> 4.4411 | G116: /feeder
B117: Machinery repair & maintenance
E118: =H203 -> 88000 | G118: machinery capital cost
D119: x | E119: =Input!E67 -> 1 | G119: % repair rate
D120: = | E120: =SUM(E118*(E119/100)) -> 880 | G120: oil, repairs & maintenance
D121: ÷ | E121: =Input!E5 -> 300 | G121: feeders
D122: = | E122: =SUM(E120/E121) -> 2.933333333 | G122: /feeder
B123: Building & fence repair
E124: =H195 -> 86000 | G124: building capital cost
D125: x | E125: =Input!E68 -> 2 | G125: % repair rate
D126: = | E126: =SUM(E124*(E125/100)) -> 1720 | G126: oil, repairs & maintenance
D127: ÷ | E127: =Input!E5 -> 300 | G127: feeders
D128: = | E128: =SUM(E126/E127) -> 5.733333333 | G128: /feeder
B130: Total | D130: = | E130: =SUM(E128+E122+E116) -> 13.10776667 | G130: /feeder
B132: 2.06 Utilities
E133: =SUM(Input!E73:E75) -> 1105.17432 | G133: cost/year
D134: ÷ | E134: =Input!E5 -> 300 | G134: feeders
D135: = | E135: =ROUND((E133)/E134,2) -> 3.68 | G135: /feeder
B137: 2.07 Trucking Costs
E138: =Input!E83 -> 7 | G138: $/loaded mile
D139: x | E139: =Input!E84 -> 150 | G139: distance miles
D140: ÷ | E140: =Input!E85 -> 55 | G140: head load capacity
D141: = | E141: =(E138*E139)/E140 -> 19.09090909 | G141: /feeder
B143: 2.08 Insurance
E144: =Input!D116+Input!D122+Input!D125 -> 154000 | G144: building & equipment investment
D145: x | E145: =Input!E95 -> 0.4 | G145: cost/$100 capital
D146: ÷ | E146: 100
D147: ÷ | E147: =Input!E5 -> 300 | G147: feeders
D148: = | E148: =ROUND(E144*E145/E146/E147,2) -> 2.05 | G148: /feeder
E150: =(Input!E7*Input!E8)/100 -> 984 | G150: feeder investment
D151: x | E151: =Input!E94 -> 0.45 | G151: cost/$100 capital
D152: ÷ | E152: 100
D153: = | E153: =ROUND(E150*E151/E152,2) -> 4.43 | G153: /feeder
C155: Total | D155: = | E155: =E148+E153 -> 6.48 | G155: /feeder
B157: 2.09 Manure Removal
D158: = | E158: =Input!E19 -> 101 | G158: days on feed
D159: x | E159: =Input!E88 -> 0.024 | G159: m3/feeder/day
D160: = | E160: =SUM(E158*E159) -> 2.424 | G160: m3 manure volume
D161: x | E161: =Input!E89 -> 75 | G161: % volume shrink
D162: x | E162: 1.30795 | G162: yd3 per m3
D163: x | E163: =Input!E90 -> 15 | G163: yd3 manure removal cost
D164: = | E164: =SUM(E160*(1-(E161/100))*E162*E163) -> 11.8892655 | G164: /feeder
B166: 2.10 Barn & Office Supplies
E167: =Input!E99 -> 1400 | G167: total barn expenses
D168: ÷ | E168: =Input!E5 -> 300 | G168: feeders
D169: = | E169: =ROUND(E167/E168,2) -> 4.67 | G169: /feeder
B171: 2.11 Death Loss
E172: =Summary!C11 -> 996.3529412 | G172: feeder cost
D173: + | E173: =SUM(Summary!C9:C20) -> 1383.654882 | G173: maximum value
D174: - | E174: =Summary!C17 -> 19.09090909 | G174: marketing costs
D175: ÷ | E175: 2 | G175: average value
D176: x | E176: =Input!E6 -> 1.5 | G176: % mortality
D177: = | E177: =ROUND(((E172+E173-E174)/E175)*E176/100,2) -> 17.71 | G177: /feeder
B179: 2.12 Operating Interest
E180: =(Input!E7*Input!E8)/100 -> 984 | G180: feeder cost
D181: + | E181: =(Summary!C9+SUM(Summary!C12:C20))/2 -> 193.6509706 | G181: ½ of feed & other costs
D182: x | E182: =Input!E101 -> 7.75 | G182: % operating interest
D183: x | E183: =Input!E17 -> 221 | G183: days on feed
D184: ÷ | E184: 365 | G184: 365 days per year
D185: = | E185: =ROUND((E180+E181)*(E182/100),2)*E183/365 -> 55.26210959 | G185: /feeder
B187: Capital Investment
B189: Handling Facilities
B190: Land & Landscaping | H190: =Input!D111 -> 10000
B191: Waterers | H191: =Input!D112 -> 6000
B192: Squeeze, Gates & Scale | H192: =Input!D113 -> 20000
B193: Well & Pressure System | H193: =Input!D114 -> 8000
B194: Pens (Working & Sorting) | H194: =Input!D115 -> 42000
B195: Total Building Cost | H195: =SUM(H190:H194) -> 86000
B197: Machinery & Equipment
B198: Self Feeder | H198: =Input!D119 -> 27000
B199: Hay Feeders & Miscellaneous | H199: =Input!D120 -> 2500
B200: Miscellaneous | H200: =Input!D121 -> 2500
B201: Tractor & Loader | H201: =Input!D125 -> 36000
B202: Miscellaneous | H202: =Input!D126 -> 20000
B203: Total | H203: =SUM(H198:H202) -> 88000
B205: Total Capital Investment | H205: =H195+H203 -> 174000
B207: B. Fixed Costs
B209: 3. Depreciation
E210: Original Cost - Salvage Value
E211: Useful Life
B213: 3.01 Buildings
E214: =Input!D116 -> 86000 | G214: original value
D215: - | E215: =(Input!E116/100)*Input!D116 -> 0 | G215: salvage value
D216: ÷ | E216: =Input!G116 -> 20 | G216: years useful life
D217: ÷ | E217: =Input!E5 -> 300 | G217: feeders
D218: = | E218: =ROUND((E214-E215)/E216/E217,2) -> 14.33 | G218: /feeder
B220: 3.02 Equipment
E221: =Input!D122 -> 32000 | G221: original value
D222: - | E222: =(Input!E122/100)*Input!D122 -> 0 | G222: salvage value
D223: ÷ | E223: =Input!G122 -> 25 | G223: years useful life
D224: ÷ | E224: =Input!E5 -> 300 | G224: feeders
D225: = | E225: =ROUND((E221-E222)/E223/E224,2) -> 4.27 | G225: /feeder
B227: 3.03 Machinery
E228: =Input!D125+Input!D126 -> 56000 | G228: original value
D229: - | E229: =(Input!E125/100)*Input!D125 -> 7200 | G229: salvage value
D230: ÷ | E230: =Input!G125 -> 15 | G230: years useful life
D231: ÷ | E231: =Input!E5 -> 300 | G231: feeders
D232: = | E232: =ROUND((E228-E229)/E230/E231,2) -> 10.84 | G232: /feeder
B233: 4. Investment
E234: Original Cost + Salvage Value x Investment Rate
E235: 2
B237: 4.01 Buildings
E238: =Input!D116 -> 86000 | G238: total building value
D239: + | E239: =Input!D116*Input!E116 -> 0 | G239: salvage value
D240: ÷ | E240: 2 | G240: average
D241: x | E241: =Input!E102 -> 3 | G241: % investment interest
D242: ÷ | E242: =Input!E5 -> 300 | G242: feeders
D243: = | E243: =ROUND((E238+E239)/E240*(E241/100)/E242,2) -> 4.3 | G243: /feeder
B245: 4.02 Machinery & Equipment
E246: =E221+E228 -> 88000 | G246: original value
D247: + | E247: =(Input!$D$119*Input!$E$122)+(Input!$D$125*Input!$E$125/100) -> 7200 | G247: salvage value
D248: ÷ | E248: 2 | G248: average
D249: x | E249: =Input!E102 -> 3 | G249: % investment interest
... 6 more rows

Sheet Breakeven
A1: Breakeven Calculations
A3: Cost per lb of gain sold (shrunk weight)
B4: Feed Costs | F4: =Summary!C6+Summary!C7+Summary!C8 -> 160.644 | H4: feed cost
E5: ÷ | F5: =Input!E26 -> 288 | H5: lbs gained weight
E6: = | F6: =F4/F5 -> 0.5577916667 | H6: /lb (gain sold)
B8: Operating Costs | F8: =Summary!C24 -> 1456.626992 | H8: operating costs
E9: - | F9: =Summary!C11 -> 996.3529412 | H9: feeder cost
E10: ÷ | F10: =Input!E26 -> 288 | H10: lbs gained weight
E11: = | F11: =(F8-F9)/F10 -> 1.598173788 | H11: /lb (gain sold)
B13: Operating & Labour Costs | F13: =Summary!C24+Summary!C37 -> 1534.626992 | H13: operating costs
E14: - | F14: =Summary!C11 -> 996.3529412 | H14: feeder cost
E15: ÷ | F15: =Input!E26 -> 288 | H15: lbs gained weight
E16: = | F16: =(F13-F14)/F15 -> 1.869007121 | H16: /lb (gain sold)
B18: Operating & Fixed | F18: =Summary!C35 -> 1495.126992 | H18: oper. & fixed costs
E19: - | F19: =Summary!C11 -> 996.3529412 | H19: feeder cost
E20: ÷ | F20: =Input!E26 -> 288 | H20: lbs gained weight
E21: = | F21: =(F18-F19)/F20 -> 1.731854343 | H21: /lb (gain sold)
B23: Total Costs | F23: =Summary!C39 -> 1573.126992 | H23: total costs
E24: - | F24: =Summary!C11 -> 996.3529412 | H24: feeder cost
E25: ÷ | F25: =Input!E26 -> 288 | H25: lbs gained weight
E26: = | F26: =(F23-F24)/F25 -> 2.002687677 | H26: /lb (gain sold)
A27: Breakeven selling price (shrunk weight)
B28: Operating Costs | F28: =Summary!C24 -> 1456.626992 | H28: operating costs
E29: ÷ | F29: =Input!E9-(Input!E9*(Input!E12/100)) -> 768 | H29: lbs shrunk weight
E30: = | F30: =F28/F29 -> 1.896649729 | H30: /lb
B32: Operating & Labour Costs | F32: =Summary!C24+Summary!C37 -> 1534.626992 | H32: operating & labour
E33: ÷ | F33: =Input!E9-(Input!E9*(Input!E12/100)) -> 768 | H33: lbs shrunk weight
E34: = | F34: =F32/F33 -> 1.998212229 | H34: /lb
B36: Operating & Fixed | F36: =Summary!C35 -> 1495.126992 | H36: oper. & fixed costs
E37: ÷ | F37: =Input!E9-(Input!E9*(Input!E12/100)) -> 768 | H37: lbs shrunk weight
E38: = | F38: =F36/F37 -> 1.946779938 | H38: /lb
B40: Total Costs | F40: =Summary!C39 -> 1573.126992 | H40: total costs
E41: ÷ | F41: =Input!E9-(Input!E9*(Input!E12/100)) -> 768 | H41: lbs shrunk weight
E42: = | F42: =F40/F41 -> 2.048342438 | H42: /lb
A44: Breakeven purchase price (shrunk weight)
B45: Operating Costs | F45: =Input!E9-(Input!E9*(Input!E12/100)) -> 768 | H45: lbs shrunk weight
E46: x | F46: =Input!E10 -> 180 | H46: $/cwt selling price
E47: = | F47: =F45*F46/100 -> 1382.4 | H47: income
E48: - | F48: =Summary!C24-Summary!C11 -> 460.2740508 | H48: operating less feeder cost
E49: ÷ | F49: =Input!E7 -> 480 | H49: lbs purchase weight
E50: = | F50: =(F47-F48)/F49 -> 1.921095727 | H50: /lb
B52: Operating & Labour Costs | F52: =F45 -> 768 | H52: lbs shrunk weight
E53: x | F53: =F46 -> 180 | H53: $/cwt selling price
E54: = | F54: =F47 -> 1382.4 | H54: income
E55: - | F55: =Summary!C24+Summary!C37-Summary!C11 -> 538.2740508 | H55: operating less feeder cost
E56: ÷ | F56: =F49 -> 480 | H56: lbs purchase weight
E57: = | F57: =(F54-F55)/F56 -> 1.758595727 | H57: /lb
B59: Operating & Fixed | F59: =F45 -> 768 | H59: lbs shrunk weight
E60: x | F60: =F46 -> 180 | H60: $/cwt selling price
E61: = | F61: =F59*F60/100 -> 1382.4 | H61: income
E62: - | F62: =Summary!C35-Summary!C11 -> 498.7740508 | H62: op. & fixed less feeder cost
E63: ÷ | F63: =F49 -> 480 | H63: lbs purchase weight
E64: = | F64: =(F61-F62)/F63 -> 1.840887394 | H64: /lb
B66: Total Costs | F66: =F45 -> 768 | H66: lbs shrunk weight
E67: x | F67: =F46 -> 180 | H67: $/cwt selling price
E68: = | F68: =F66*F67/100 -> 1382.4 | H68: income
E69: - | F69: =Summary!C39-Summary!C11 -> 576.7740508 | H69: total less feeder cost
E70: ÷ | F70: =F49 -> 480 | H70: lbs purchase weight
E71: = | F71: =(F68-F69)/F70 -> 1.678387394 | H71: /lb
J74: October, 2022
